fUSD/lending_fUSD_20250629
["ID","MTS","AMOUNT","RATE_DAILY","PERIOD"]
[368545353,1751201484775,-490.0,0.00025479,3]
[368545355,1751201484785,-470.0,0.00025479,3]
[368545357,1751201484797,-744.67,0.00025479,3]
[368545359,1751201484808,-490.0,0.00025479,3]
[368545361,1751201484817,-2994.27,0.00025479,3]
[368545363,1751201484826,-490.0,0.00025479,3]
[368545365,1751201484836,-5396.79,0.00025479,3]
[368545367,1751201484845,-2188.62,0.00025479,3]
[368545369,1751201484855,-8364.13,0.00025479,3]
[368545371,1751201484864,-490.0,0.00025479,3]
[368545373,1751201484873,-1801.67,0.00025479,3]
[368545375,1751201484882,-502.30746142,0.00025479,3]
[368545377,1751201484891,-738.25,0.00025479,3]
[368545379,1751201484900,-2524.32,0.00025479,3]
[368545381,1751201484910,-490.0,0.00025479,3]
[368545383,1751201484919,-490.0,0.00025479,3]
[368545385,1751201484928,-2194.28155468,0.00025479,3]
[368545768,1751201494240,2217.04,7.945e-05,2]
[368545772,1751201632231,-2000.0,0.000181,2]
[368545775,1751201751740,306.7,0.00026284,120]
[368545776,1751201865299,375.79,0.00013699,2]
[368545778,1751201876485,1624.21,0.00013963,2]
[368545779,1751201876508,6000.0,0.00013963,2]
[368545780,1751201876531,6000.0,0.00013963,2]
[368545781,1751201876553,6000.0,0.00013963,2]
[368545782,1751201876577,3707.85849198,0.00013963,2]
[368545783,1751201885995,-250.0,0.00019036,2]
[368545784,1751201886016,-250.0,0.0001991,2]
[368545785,1751201901515,150.0,1e-08,2]
[368545788,1751201973265,611.96348585,0.00027397,120]
[368545790,1751201990778,2109.23087688,0.00027,120]
[368545791,1751202047918,300.0,0.00027397,120]
[368545792,1751202083490,151.0,0.0001991,2]
[368545793,1751202083598,554.21617948,0.0001991,2]
[368545794,1751202085707,831.32426922,0.0001991,2]
[368545795,1751202086306,151.0,0.0001991,2]
[368545796,1751202088046,153.105637,0.0001991,2]
[368545797,1751202088401,415.66213461,0.0001991,2]
[368545798,1751202091922,207.83106731,0.0001991,2]
[368545803,1751202384116,207.8310673,0.0001991,2]
[368545821,1751202631722,-161.98757335,0.00020187,2]
[368545822,1751202631732,-250.0,0.00020187,2]
[368545823,1751202631742,-300.0,0.00020187,2]
[368545824,1751202631751,-375.79,0.00020187,2]
[368545825,1751202631760,-165.18,0.00020467,2]
[368545826,1751202631769,-1000.0,0.000208,2]
[368545827,1751202631779,-284.01267497,0.0002089,2]
[368545828,1751202631788,-275.97454638,0.0002099,2]
[368545829,1751202631800,-3.46138242,0.0002099,2]
[368545830,1751202631809,-161.98757335,0.00021086,2]
[368545831,1751202631819,-835.62347362,0.0002192,2]
[368545832,1751202631828,-300.0,0.00022205,2]
[368545833,1751202631839,-1200.0,0.00022205,2]
[368545834,1751202631848,-300.0,0.00022206,2]
[368545835,1751202631858,-1500.0,0.00022206,2]
[368545836,1751202631867,-250.0,0.00022206,2]
[368545837,1751202631876,-1500.0,0.00022206,2]
[368545838,1751202631886,-1500.0,0.00022206,2]
[368545839,1751202631895,-182.33,0.00022792,2]
[368545840,1751202631904,-3754.13,0.00022829,2]
[368545841,1751202631915,-135.09398452,0.00022847,2]
[368545842,1751202631927,-413.89043632,0.00022847,2]
[368545843,1751202631950,-282.39557916,0.00022847,2]
[368545844,1751202631959,-66.79412216,0.00022913,2]
[368545845,1751202631971,-372.51000098,0.00022913,2]
[368545846,1751202631987,-677.8793338,0.00022913,2]
[368545847,1751202631999,-591.06929982,0.00022913,2]
[368545848,1751202632010,-329.76386651,0.00022913,2]
[368545849,1751202632035,-193.48337673,0.00022913,2]
[368545850,1751202632045,-200.0,0.00022925,2]
[368545851,1751202632055,-116.56889305,0.00022964,7]
[368545852,1751202632067,-83.43110695,0.00022964,7]
[368545853,1751202632077,-382.87387497,0.00023,8]
[368545854,1751202632090,-239.01,0.00023044,2]
[368545855,1751202632100,-382.87387492,0.00023141,8]
[368545856,1751202632110,-516.0,0.00023227,2]
[368545857,1751202632121,-207.4,0.00023356,2]
[368545858,1751202632131,-3026.73169399,0.00023356,2]
[368545859,1751202632142,-3885.91030601,0.00023356,2]
[368545860,1751202632151,-306.7,0.00023364,2]
[368545861,1751202632161,-382.87387492,0.00023383,9]
[368545862,1751202632170,-4034.4,0.00023384,2]
[368545863,1751202632180,-7143.77358455,0.00023411,2]
[368545864,1751202632190,-735.74370965,0.00023445,2]
[368545865,1751202632201,-1000.0,0.00023452,2]
[368545866,1751202632211,-636.99495754,0.00023452,2]
[368545867,1751202632220,-500.0,0.00023452,2]
[368545868,1751202632229,-347.99250985,0.00023452,2]
[368545869,1751202632240,-198.97225457,0.00023452,2]
[368545870,1751202632250,-500.0,0.00023452,2]
[368545871,1751202632259,-500.0,0.00023452,2]
[368545872,1751202632269,-500.0,0.00023452,2]
[368545873,1751202632279,-500.0,0.00023452,2]
[368545874,1751202632289,-500.0,0.00023452,2]
[368545875,1751202632298,-500.0,0.00023452,2]
[368545876,1751202632307,-206.73034952,0.00023452,2]
[368545877,1751202632316,-500.0,0.00023452,2]
[368545878,1751202632325,-403.4010254,0.00023452,2]
[368545879,1751202632334,-152.42271337,0.00023452,2]
[368545880,1751202632343,-668.65185757,0.00023452,2]
[368545881,1751202632352,-1000.0,0.00023538,2]
[368545882,1751202632361,-182.33,0.00023589,2]
[368545883,1751202632370,-1000.0,0.000236,2]
[368545884,1751202632379,-166.7,0.00023622,2]
[368545885,1751202632389,-382.87387492,0.00023624,9]
[368545886,1751202632398,-500.0,0.00023699,2]
[368545887,1751202632407,-213.15,0.00023836,2]
[368545888,1751202632417,-382.87387492,0.00023866,10]
[368545889,1751202632426,-5397.62370998,0.00023974,2]
[368545890,1751202632435,-200.0,0.000241,7]
[368545891,1751202632444,-382.87387492,0.00024107,10]
[368545892,1751202632453,-3222.32,0.00024174,2]
[368545893,1751202632463,-217.25,0.00024199,2]
[368545894,1751202632472,-1680.0,0.00024237,2]
[368545895,1751202632481,-1414.0,0.00024254,2]
[368545896,1751202632490,-382.87387492,0.00024348,11]
[368545897,1751202632499,-500.0,0.000244,8]
[368545898,1751202632508,-1100.0,0.000245,8]
[368545899,1751202632517,-168.0,0.00024528,2]
[368545900,1751202632526,-6735.83909126,0.00024552,2]
[368545901,1751202632567,-1447.54274632,0.00024552,2]
[368545902,1751202632578,-310.07538915,0.00024552,2]
[368545903,1751202632589,-1141.69276085,0.00024552,2]
[368545904,1751202632600,-309.29844596,0.00024552,2]
[368545905,1751202632626,-675.00168085,0.00024552,2]
[368545906,1751202632637,-1610.27552627,0.00024552,2]
[368545907,1751202632649,-4069.69451644,0.00024552,2]
[368545908,1751202632667,-3439.58788607,0.00024552,2]
[368545909,1751202632679,-4005.07657024,0.00024552,2]
[368545910,1751202632690,-696.8401546,0.00024552,2]
[368545914,1751202637740,-10813.0,0.00024552,2]
[368546585,1751202644619,-994.08067206,0.00024552,2]
[368546588,1751202644636,-3168.34358144,0.00024552,2]
[368546590,1751202644646,-572.63712612,0.00024557,2]
[368546592,1751202644655,-156.41229017,0.00024557,2]
[368546594,1751202644665,-212.53905391,0.00024557,2]
[368546596,1751202644675,-8768.03429494,0.00024557,2]
[368546598,1751202644684,-235.10316135,0.00024557,2]
[368546600,1751202644694,-38.39682315,0.00024557,2]
[368546653,1751202645172,-121.20587998,0.00024557,2]
[368546656,1751202645195,-692.0,0.00024566,2]
[368546658,1751202645205,-382.87387492,0.0002459,11]
[368546660,1751202645215,-376.0,0.000246,2]
[368546662,1751202645225,-1700.0,0.000246,8]
[368546664,1751202645235,-8768.03429486,0.00024648,2]
[368546666,1751202645245,-398.91022656,0.00024656,2]
[368546668,1751202645255,-414.21637078,0.00024656,2]
[368546670,1751202645264,-214.80644721,0.00024656,2]
[368546672,1751202645275,-500.0,0.00024656,2]
[368546674,1751202645284,-182.92910694,0.00024656,2]
[368546676,1751202645294,-500.0,0.00024656,2]
[368546678,1751202645303,-500.0,0.00024656,2]
[368546680,1751202645312,-285.22262353,0.00024656,2]
[368546682,1751202645322,-500.0,0.00024656,2]
[368546684,1751202645331,-500.0,0.00024656,2]
[368546686,1751202645343,-500.0,0.00024656,2]
[368546688,1751202645352,-500.0,0.00024656,2]
[368546690,1751202645361,-500.0,0.00024656,2]
[368546692,1751202645371,-300.75408557,0.00024656,2]
[368546694,1751202645379,-500.0,0.00024656,2]
[368546696,1751202645388,-500.0,0.00024656,2]
[368546698,1751202645399,-500.0,0.00024656,2]
[368546700,1751202645408,-500.0,0.00024656,2]
[368546702,1751202645417,-351.63804754,0.00024657,2]
[368546704,1751202645427,-1351.66801576,0.00024657,2]
[368546706,1751202645436,-490.0,0.00024657,2]
[368546708,1751202645446,-491.0647325,0.00024657,2]
[368546709,1751202645455,-490.0,0.00024657,2]
[368546712,1751202645464,-490.0,0.00024657,2]
[368546714,1751202645473,-490.0,0.00024657,2]
[368546716,1751202645482,-490.0,0.00024657,2]
[368546717,1751202645492,-490.0,0.00024657,2]
[368546719,1751202645502,-490.0,0.00024657,2]
[368546721,1751202645511,-490.0,0.00024657,2]
[368546723,1751202645522,-490.92911123,0.00024657,2]
[368546726,1751202645532,-490.0,0.00024657,2]
[368546728,1751202645543,-490.0,0.00024657,2]
[368546729,1751202645553,-490.0,0.00024657,2]
[368546731,1751202645563,-607.36047388,0.00024657,2]
[368546733,1751202645572,-189.32482853,0.00024657,2]
[368546738,1751202645603,-300.67517147,0.00024657,2]
[368546740,1751202645612,-490.0,0.00024657,2]
[368546742,1751202645621,-490.0,0.00024657,2]
[368546743,1751202645630,-490.0,0.00024657,2]
[368546745,1751202645640,-492.26230829,0.00024657,2]
[368546747,1751202645649,-491.51357236,0.00024657,2]
[368546749,1751202645659,-490.0,0.00024657,2]
[368546751,1751202645668,-721.0,0.00024657,2]
[368546753,1751202645679,-490.0,0.00024657,2]
[368546755,1751202645688,-490.0,0.00024657,2]
[368546757,1751202645697,-490.0,0.00024657,2]
[368546759,1751202645707,-490.0,0.00024657,2]
[368546761,1751202645716,-490.0,0.00024657,2]
[368546763,1751202645725,-490.0,0.00024657,2]
[368546765,1751202645734,-490.0,0.00024657,2]
[368546767,1751202645743,-490.0,0.00024657,2]
[368546769,1751202645752,-538.26345886,0.00024657,2]
[368546771,1751202645762,-490.0,0.00024657,2]
[368546773,1751202645771,-490.0,0.00024657,2]
[368546775,1751202645780,-490.0,0.00024657,2]
[368546777,1751202645790,-490.0,0.00024657,2]
[368546779,1751202645800,-490.0,0.00024657,2]
[368546781,1751202645809,-793.66,0.00024657,2]
[368546782,1751202645818,-490.0,0.00024657,2]
[368546784,1751202645828,-490.0,0.00024657,2]
[368546786,1751202645837,-513.30184708,0.00024657,2]
[368546788,1751202645846,-774.83,0.00024657,2]
[368546790,1751202645855,-490.0,0.00024657,2]
[368546792,1751202645864,-490.0,0.00024657,2]
[368546794,1751202645874,-490.0,0.00024657,2]
[368546796,1751202645883,-538.8,0.00024657,2]
[368546798,1751202645893,-490.0,0.00024657,2]
[368546800,1751202645902,-490.0,0.00024657,2]
[368546802,1751202645911,-490.0,0.00024657,2]
[368546804,1751202645920,-775.99,0.00024657,2]
[368546806,1751202645930,-490.0,0.00024657,2]
[368546808,1751202645939,-490.0,0.00024657,2]
[368546810,1751202645948,-490.0,0.00024657,2]
[368546812,1751202645957,-490.0,0.00024657,2]
[368546814,1751202645966,-490.0,0.00024657,2]
[368546816,1751202645975,-490.0,0.00024657,2]
[368546818,1751202645985,-345.27969174,0.00024657,2]
[368546820,1751202645994,-490.0,0.00024657,2]
[368546822,1751202646003,-490.0,0.00024657,2]
[368546824,1751202646012,-490.0,0.00024657,2]
[368546826,1751202646021,-490.0,0.00024657,2]
[368546828,1751202646030,-490.0,0.00024657,2]
[368546830,1751202646039,-490.0,0.00024657,2]
[368546832,1751202646048,-490.0,0.00024657,2]
[368546833,1751202646057,-490.0,0.00024657,2]
[368546835,1751202646067,-168.44447662,0.00024657,2]
[368546837,1751202646076,-1213.08,0.00024657,2]
[368546839,1751202646085,-856.9,0.00024657,2]
[368546841,1751202646095,-490.0,0.00024657,2]
[368546843,1751202646103,-490.0,0.00024657,2]
[368546845,1751202646113,-490.0,0.00024657,2]
[368546847,1751202646123,-490.0,0.00024657,2]
[368546849,1751202646135,-490.0,0.00024657,2]
[368546851,1751202646144,-490.0,0.00024657,2]
[368546853,1751202646153,-490.0,0.00024657,2]
[368546855,1751202646162,-490.0,0.00024657,2]
[368546857,1751202646172,-490.0,0.00024657,2]
[368546859,1751202646181,-499.66127289,0.00024657,2]
[368546861,1751202646192,-490.0,0.00024657,2]
[368546863,1751202646201,-555.81,0.00024657,2]
[368546865,1751202646215,-650.07,0.00024657,2]
[368546867,1751202646224,-490.0,0.00024657,2]
[368546869,1751202646233,-276.95964756,0.00024657,2]
[368546872,1751202646252,-213.04035244,0.00024657,2]
[368546874,1751202646262,-489.98276624,0.00024657,2]
[368546948,1751202646976,-159.6027031,0.00024648,2]
[368546950,1751202646986,-0.01723376,0.00024657,2]
[368546952,1751202646995,-171.92627953,0.00024657,2]
[368546957,1751202647046,-417.94372047,0.00024657,2]
[368546958,1751202647055,-490.0,0.00024657,2]
[368546959,1751202647064,-521.29,0.00024657,2]
[368546960,1751202647074,-682.36530269,0.00024657,2]
[368547909,1751202913628,379.87,0.00013699,2]
[368547910,1751202933867,150.0,0.0002,2]
[368547915,1751203278021,1148.15964508,0.0002,2]
[368547916,1751203388269,384.246408,7.945e-05,2]
[368547917,1751203507673,1907.89510002,0.00014,2]
[368547918,1751203507698,6000.0,0.00014,2]
[368547919,1751203507722,6000.0,0.00014,2]
[368547920,1751203507746,6000.0,0.00014,2]
[368547921,1751203507770,6000.0,0.00014,2]
[368547922,1751203507794,6000.0,0.00014,2]
[368547923,1751203507819,6000.0,0.00014,2]
[368547924,1751203507844,6000.0,0.00014,2]
[368547925,1751203507869,6000.0,0.00014,2]
[368547926,1751203507897,6000.0,0.00014,2]
[368547927,1751203507925,6000.0,0.00014,2]
[368547928,1751203507960,40000.0,0.00014,2]
[368547929,1751203507997,40000.0,0.00014,2]
[368547930,1751203508027,40000.0,0.00014,2]
[368547931,1751203508059,40000.0,0.00014,2]
[368547932,1751203508090,40000.0,0.00014,2]
[368547933,1751203508122,40000.0,0.00014,2]
[368547934,1751203508157,40000.0,0.00014,2]
[368547935,1751203508183,40000.0,0.00014,2]
[368547936,1751203508208,40000.0,0.00014,2]
[368547937,1751203508233,40000.0,0.00014,2]
[368547938,1751203508258,40000.0,0.00014,2]
[368547939,1751203508284,40000.0,0.00014,2]
[368547940,1751203508306,40000.0,0.00014,2]
[368547941,1751203508330,40000.0,0.00014,2]
[368547942,1751203508355,40000.0,0.00014,2]
[368547943,1751203508380,40000.0,0.00014,2]
[368547944,1751203508689,40000.0,0.00014,2]
[368547945,1751203508714,40000.0,0.00014,2]
[368547946,1751203508741,40000.0,0.00014,2]
[368547947,1751203508765,40000.0,0.00014,2]
[368547948,1751203508791,40000.0,0.00014,2]
[368547949,1751203508816,40000.0,0.00014,2]
[368547950,1751203508842,40000.0,0.00014,2]
[368547951,1751203508867,40000.0,0.00014,2]
[368547952,1751203508895,40000.0,0.00014,2]
[368547953,1751203508932,40000.0,0.00014,2]
[368547954,1751203508961,40000.0,0.00014,2]
[368547955,1751203508993,40000.0,0.00014,2]
[368547956,1751203509019,40000.0,0.00014,2]
[368547957,1751203509063,40000.0,0.00014,2]
[368547958,1751203509097,40000.0,0.00014,2]
[368547959,1751203509124,40000.0,0.00014,2]
[368547960,1751203509148,40000.0,0.00014,2]
[368547961,1751203509172,40000.0,0.00014,2]
[368547962,1751203509198,40000.0,0.00014,2]
[368547963,1751203509222,40000.0,0.00014,2]
[368547964,1751203509264,40000.0,0.00014,2]
[368547965,1751203509293,40000.0,0.00014,2]
[368547966,1751203509324,40000.0,0.00014,2]
[368547967,1751203509362,40000.0,0.00014,2]
[368547968,1751203509391,40000.0,0.00014,2]
[368547969,1751203509418,40000.0,0.00014,2]
[368547970,1751203509443,40000.0,0.00014,2]
[368547971,1751203509468,40000.0,0.00014,2]
[368547972,1751203509493,40000.0,0.00014,2]
[368547973,1751203509518,40000.0,0.00014,2]
[368547974,1751203509543,40000.0,0.00014,2]
[368547975,1751203509568,40000.0,0.00014,2]
[368547976,1751203509593,40000.0,0.00014,2]
[368547977,1751203509618,40000.0,0.00014,2]
[368547979,1751203556103,22610.66749571,6.94e-05,2]
[368547980,1751203564076,14092.16340208,8e-05,2]
[368547988,1751203689833,181.82793803,0.000211,90]
[368547989,1751203707950,-500.0,0.000138,5]
[368547990,1751203707976,-1100.0,0.000139,5]
[368547991,1751203707999,-1828.35456826,0.000139,2]
[368547992,1751203708024,-249.0,0.00013999,2]
[368547993,1751203708049,-296322.64543174,0.00014,2]
[368547995,1751203714756,-50000.0,0.00014,2]
[368547996,1751203721719,-500.0,0.00013999,2]
[368547997,1751203721745,-500.0,0.00013999,2]
[368547998,1751203721771,-500.0,0.00013999,2]
[368547999,1751203721794,-150.36451305,0.00013999,2]
[368548000,1751203721819,-500.0,0.00013999,2]
[368548001,1751203721845,-500.0,0.00013999,2]
[368548002,1751203721869,-449.65583647,0.00013999,2]
[368548003,1751203721895,-500.0,0.00013999,2]
[368548004,1751203721921,-500.0,0.00013999,2]
[368548005,1751203721948,-500.0,0.00013999,2]
[368548006,1751203721974,-160.5278599,0.00013999,2]
[368548007,1751203722001,-500.0,0.00013999,2]
[368548008,1751203722028,-94739.45179058,0.00014,2]
[368548018,1751203732277,-2343.62642886,0.00013368,2]
[368548019,1751203732304,-47656.37357114,0.00014,2]
[368548020,1751203743389,-7175.96137762,0.000139,2]
[368548021,1751203743418,-12824.03862238,0.00014,2]
[368548022,1751203743891,1278.0,0.00027397,120]
[368548023,1751203757266,-707.19886268,0.000139,2]
[368548024,1751203757289,-1589.29863154,0.00014,2]
[368548025,1751203758569,-200000.0,0.00014,2]
[368548026,1751203771281,-50000.0,0.00014,2]
[368548027,1751203777337,-50000.0,0.00014,2]
[368548033,1751203818675,-354.07,0.0001399,2]
[368548034,1751203818704,-354.07,0.0001399,2]
[368548035,1751203818735,-1200.0,0.00013999,2]
[368548043,1751203832186,-383.348914,0.00014,2]
[368548525,1751203837879,-1141.67115868,0.00014,2]
[368548526,1751203837961,-275477.63394273,0.00014,2]
[368548527,1751203837972,-115324.06604088,0.00014,2]
[368548528,1751203837984,-1214.31884132,0.00014,2]
[368548529,1751203838060,-864.76012453,0.00014,2]
[368548530,1751203838071,-1348.52228421,0.00014,2]
[368548531,1751203838112,-9433.5198898,0.00014,2]
[368548532,1751203838123,-587.3792932,0.00014,2]
[368548533,1751203838134,-654.9199999,0.00014,2]
[368548534,1751203838248,-74408.01563074,0.00014,2]
[368548535,1751203838258,-678254.0891469,0.00014,2]
[368548536,1751203838267,-161.56876875,0.000149,2]
[368548537,1751203838278,-250.0,0.00015,2]
[368548538,1751203838288,-9016.75334031,0.00015,2]
[368548539,1751203838298,-7175.96137753,0.00015115,2]
[368548540,1751203838308,-707.19886267,0.00015115,2]
[368548541,1751203838318,-1200.0,0.00015399,2]
[368548542,1751203838328,-500.0,0.00015999,2]
[368548543,1751203838338,-500.0,0.00015999,2]
[368548544,1751203838347,-212.36950193,0.00015999,2]
[368548545,1751203838357,-500.0,0.00015999,2]
[368548546,1751203838367,-364.75908553,0.00015999,2]
[368548547,1751203838376,-500.0,0.00015999,2]
[368548548,1751203838386,-500.0,0.00015999,2]
[368548549,1751203838396,-500.0,0.00015999,2]
[368548551,1751203838405,-933632.98895882,0.00016,2]
[368548553,1751203838415,-7175.96137753,0.00016329,2]
[368548555,1751203838425,-707.19886267,0.00016329,2]
[368548557,1751203838434,-4583.5530201,0.00016435,2]
[368548559,1751203838444,-300.0,0.00017,2]
[368548561,1751203838453,-7175.96137753,0.00017544,2]
[368548563,1751203838462,-707.19886267,0.00017544,2]
[368548565,1751203838472,-7175.96137753,0.00018758,2]
[368548567,1751203838485,-707.19886267,0.00018758,2]
[368548569,1751203838495,-350.0,0.00019,2]
[368548571,1751203838504,-3192.96677802,0.00019,2]
[368548573,1751203838513,-167.91,0.00019178,2]
[368548575,1751203838523,-3041.46264711,0.000194,2]
[368548577,1751203838532,-7175.96137753,0.00019973,2]
[368548579,1751203838541,-707.19886267,0.00019973,2]
[368548581,1751203838550,-1987.31035492,0.0002,2]
[368548583,1751203838562,-195.74005047,0.0002,2]
[368548585,1751203838572,-379.87,0.00020187,2]
[368548587,1751203838581,-7175.96137753,0.00021187,2]
[368548589,1751203838590,-707.19886267,0.00021187,2]
[368548591,1751203838600,-200.0,0.00021668,7]
[368548594,1751203838611,-7175.96137753,0.00022402,2]
[368548596,1751203838620,-707.19886267,0.00022402,2]
[368548598,1751203838630,-275.43,0.00022404,2]
[368548599,1751203838639,-328.89,0.0002262,2]
[368548601,1751203838650,-280.77417498,0.000228,8]
[368548604,1751203838660,-280.77417494,0.000228,8]
[368548606,1751203838669,-280.77417494,0.000228,8]
[368548607,1751203838679,-280.77417494,0.000228,8]
[368548610,1751203838689,-280.77417494,0.000228,8]
[368548611,1751203838698,-280.77417494,0.000228,8]
[368548613,1751203838707,-280.77417494,0.000228,8]
[368548615,1751203838716,-280.77417494,0.000228,8]
[368548617,1751203838726,-280.77417494,0.000228,8]
[368548619,1751203838735,-280.77417494,0.000228,8]
[368548621,1751203838744,-280.77417494,0.000228,8]
[368548623,1751203838753,-280.77417494,0.000228,8]
[368548625,1751203838762,-280.77417494,0.000228,8]
[368548627,1751203838771,-280.77417494,0.000228,8]
[368548629,1751203838781,-280.77417494,0.000228,8]
[368548631,1751203838790,-280.77417494,0.000228,8]
[368548633,1751203838799,-280.77417494,0.000228,8]
[368548636,1751203838808,-500.0,0.00022932,2]
[368548638,1751203838818,-530.0,0.00023056,2]
[368548640,1751203838827,-280.77417494,0.00023107,8]
[368548641,1751203838836,-806.69,0.00023272,2]
[368548643,1751203838848,-1596.0,0.000233,5]
[368548645,1751203838857,-345.70360404,0.00023547,2]
[368548647,1751203838866,-250.0,0.00023573,2]
[368548649,1751203838876,-280.77417494,0.0002359,9]
[368548651,1751203838885,-7175.96137753,0.00023616,2]
[368548653,1751203838895,-707.19886267,0.00023616,2]
[368548655,1751203838903,-207.4,0.00023653,2]
[368548657,1751203838913,-23900.0,0.00023668,2]
[368548659,1751203838922,-9700.72,0.00023709,2]
[368548661,1751203838931,-1000.0,0.00023811,2]
[368548663,1751203838940,-1583.96,0.00023829,2]
[368548665,1751203838950,-205.28,0.00023836,2]
[368548667,1751203838960,-862.0,0.00023939,2]
[368548669,1751203838969,-313.32711684,0.00023974,2]
[368548671,1751203838979,-5000.00026648,0.00024,5]
[368548673,1751203838989,-166.29,0.00024041,2]
[368548675,1751203838999,-280.77417494,0.00024072,10]
[368548677,1751203839008,-518.0,0.00024089,2]
[368548679,1751203839017,-168.0,0.00024151,2]
[368548681,1751203839027,-150.0,0.00024191,2]
[368548683,1751203839036,-168.0,0.00024254,7]
[368548685,1751203839045,-150.0,0.00024258,2]
[368548687,1751203839055,-150.0,0.00024339,2]
[368548689,1751203839064,-300.0,0.00024405,2]
[368548691,1751203839074,-202.0,0.00024405,2]
[368548693,1751203839083,-178.42522448,0.00024405,2]
[368548695,1751203839093,-150.0,0.0002441,2]
[368548697,1751203839102,-2969.26129,0.0002441,2]
[368548699,1751203839112,-67759.28198928,0.0002442,2]
[368548701,1751203839121,-16692.29724948,0.0002442,2]
[368548704,1751203839131,-757.09540009,0.00024433,2]
[368548706,1751203839140,-150.0,0.00024541,2]
[368548708,1751203839150,-280.77417494,0.00024555,11]
[368548710,1751203839159,-566.82787419,0.00024557,2]
[368548712,1751203839169,-152.86711798,0.00024557,2]
[368548714,1751203839178,-483.61498958,0.00024557,2]
[368548716,1751203839187,-150.0,0.00024569,2]
[368548718,1751203839196,-150.0,0.00024593,2]
[368548720,1751203839205,-1700.0,0.000246,8]
[368548722,1751203839214,-150.0,0.00024637,2]
[368548724,1751203839224,-649.04009511,0.0002465,2]
[368548726,1751203839233,-283.7658004,0.00024655,7]
[368548728,1751203839243,-238980.97737221,0.00024657,4]
[368548730,1751203839252,-20158.55514753,0.00024657,4]
[368548732,1751203839261,-156.616945,0.00024657,2]
[368548734,1751203839271,-153.018974,0.00024657,2]
[368548736,1751203839280,-3405.463417,0.00024657,2]
[368548738,1751203839289,-490.0,0.00024657,2]
[368548740,1751203839299,-465.85678256,0.00024657,2]
[368548742,1751203839308,-657.92,0.00024657,2]
[368548744,1751203839317,-688.78,0.00024657,2]
[368548746,1751203839326,-490.0,0.00024657,2]
[368548748,1751203839336,-490.0,0.00024657,2]
[368548750,1751203839345,-490.0,0.00024657,2]
[368548752,1751203839354,-490.0,0.00024657,2]
[368548754,1751203839364,-490.0,0.00024657,2]
[368548756,1751203839373,-490.0,0.00024657,2]
[368548758,1751203839382,-490.0,0.00024657,2]
[368548760,1751203839392,-490.0,0.00024657,2]
[368548762,1751203839402,-572.4,0.00024657,2]
[368548764,1751203839412,-572.4,0.00024657,2]
[368548766,1751203839422,-490.0,0.00024657,2]
[368548768,1751203839431,-490.0,0.00024657,2]
[368548770,1751203839440,-490.0,0.00024657,2]
[368548772,1751203839449,-300.23,0.00024657,2]
[368548774,1751203839458,-490.0,0.00024657,2]
[368548776,1751203839467,-490.0,0.00024657,2]
[368548778,1751203839476,-498.28040211,0.00024657,2]
[368548780,1751203839489,-420.0,0.00024657,2]
[368548782,1751203839499,-451.69240868,0.00024657,2]
[368548784,1751203839508,-490.0,0.00024657,2]